Cogmind - Beta 16 @@@ ROGUE MODE // 2025.11.09 @ 21:54:16 Player: Runia Result: Destroyed by S-10 Pest with Light Assault Rifle Performance ------------- Evolutions (0) 0 Regions Visited (3) 600 Robots Destroyed (34) 170 Value Destroyed (821) 821 Prototype IDs (7) 140 Alien Tech Used (0) 0 Bonus (0) 0 TOTAL SCORE: 1731 Bonus ------- None Cogmind --------- Core Integrity 0/250 Matter 274/300 Energy 233/250 System Corruption 0% Temperature Cool (0) Movement Treading (480) Ox4 Location -10/Subcaves Parts ------- > --- POWER (1) -------- Ion Engine > --- PROPULSION (2) --- Light Treads Wheel > --- UTILITY (2) ------ Huge Storage Unit Hardened Light Armor Plating > --- WEAPON (2) ------- Subdweller Beam Cannon Makeshift Shrapnel Gun > --- INVENTORY (25) --- Ion Engine Light Treads Large Storage Unit Medium Matter Pod (100) Compact Matter Pod (150) Seismic Detector Seismic Detector Hardened Light Armor Plating Hardened Light Armor Plating Hardened Light Armor Plating Hardened Light Armor Plating Subdweller Laser Assault Rifle Assault Rifle Subdweller Machine Gun Subdweller Machine Gun Grenade Launcher Datajack EMP Trap EMP Trap EMP Trap Peak State ------------ > --- POWER ------------ Ion Engine > --- PROPULSION ------- Light Treads Compact Wheel > --- UTILITY ---------- Huge Storage Unit Hardened Light Armor Plating > --- WEAPON ----------- Subdweller Machine Gun Makeshift Shrapnel Gun > --- INVENTORY -------- Ion Engine Light Treads Wheel Large Storage Unit Medium Matter Pod Compact Matter Pod Seismic Detector Seismic Detector Hardened Light Armor Plating Hardened Light Armor Plating Hardened Light Armor Plating Hardened Light Armor Plating Subdweller Laser Beam Cannon Assault Rifle Assault Rifle Subdweller Machine Gun Grenade Launcher Datajack EMP Trap EMP Trap EMP Trap [Rating: 15] Favorites ----------- Power Ion Engine Engine Ion Engine Propulsion Light Treads Treads Light Treads Leg Aluminum Leg Wheel Compact Wheel Utility Hardened Light Armor Plating Device Seismic Detector Storage Huge Storage Unit Protection Hardened Light Armor Plating Weapon EM Pulse Gun Energy Gun EM Pulse Gun Energy Cannon Beam Cannon Ballistic Gun Light Assault Rifle Launcher Grenade Launcher Build | -11 -10 -10 -10 ------- Run | Yrd Mat Min Sub Slots Evolved . | . . . . Power . | . . . . Propulsion . | . . . . Utility . | . . . . Weapon . | . . . . Parts Attached 24 | 3 12 . 9 Power 2 | . 2 . . Engine 2 | . 2 . . Core . | . . . . Reactor . | . . . . Propulsion 5 | 2 1 . 2 Treads 3 | 2 . . 1 Leg . | . . . . Wheel 2 | . 1 . 1 Hover . | . . . . Flight . | . . . . Utility 8 | . 5 . 3 Device 2 | . . . 2 Storage 2 | . 2 . . Processor . | . . . . Hackware . | . . . . Protection 4 | . 3 . 1 Artifact . | . . . . Weapon 9 | 1 4 . 4 Energy Gun 2 | 1 1 . . Energy Cannon 2 | . 1 . 1 Ballistic Gun 4 | . 1 . 3 Ballistic Cannon . | . . . . Launcher 1 | . 1 . . Special Weapon . | . . . . Impact Weapon . | . . . . Slashing Weapon . | . . . . Piercing Weapon . | . . . . Special Melee Weapon . | . . . . Unidentified Prototypes . | . . . . Parts Lost 5 | . 1 . 4 Power . | . . . . Propulsion 2 | . . . 2 Utility 1 | . . . 1 Weapon 2 | . 1 . 1 Highest Loss Streak 2 | . 1 . 2 To Critical Strikes . | . . . . Average Backups 13 | 5 10 18 17 Power . | 1 . 1 1 Propulsion 2 | 3 2 3 1 Utility 6 | . 4 9 9 Weapon 3 | 1 2 4 4 Tool/Special . | . . . . Unused Backups 14 | . 2 . 12 Power 2 | . 1 . 1 Propulsion . | . . . . Utility 7 | . 1 . 6 Weapon 4 | . . . 4 Tool/Special 1 | . . . 1 Average Slot Usage (%) 99 | . 98 100 99 Engine 14 | . 14 14 14 Treads 14 | . 14 14 15 Wheel 13 | . 13 14 12 Device 1 | . . . 4 Storage 14 | . 14 14 14 Protection 12 | . 13 14 9 Energy Gun 8 | . 16 . . Energy Cannon 8 | . 5 14 11 Ballistic Gun 9 | . 5 13 16 Peak Build Rating 15 | 6 10 10 15 Average Rating 10 | 5 9 10 12 On Entrance 8 | 6 6 10 10 Avg Prop Armor Cover (%) 9 | . 9 10 11 Naked Turns . | . . . . Heaviest Build 100 | 14 96 94 100 Greatest Support 40 | 40 40 16 40 Greatest Overweight (x) 9 | . 5 5 9 Average Overweight (x) 3 | . 2 5 6 Largest Inventory Capacity 25 | 8 25 25 25 Average Capacity 20 | 8 17 25 25 Most Carried 22 | 6 18 22 22 Average Carried 15 | 4 10 19 20 Final Capacity 25 | 8 25 25 25 Final Carried 22 | 4 18 22 21 Class Distribution -------------------- 100% | Mutant Dominant Class ---------------- Mutant | -10/Materials Mutant | -10/Mines Mutant | -10/Subcaves Resources | -11 -10 -10 -10 ----------- Run | Yrd Mat Min Sub Matter Collected 824 | 200 151 281 192 Remotely . | . . . . Salvage Created 969 | 53 540 141 235 Parts 63 | 1 37 11 14 Haulers Intercepted 2 | . 2 . . Recyclers Shooed 1 | . 1 . . Parts Field Recycled . | . . . . Retrieved Matter . | . . . . Parts Self-Destructed 10 | . . . 10 Prevented . | . . . . Parts Restored . | . . . . Kills | -11 -10 -10 -10 ------- Run | Yrd Mat Min Sub Combat Hostiles Destroyed 25 | . 11 7 7 Guns 12 | . 8 . 4 Cannons 4 | . . 2 2 AOE 8 | . 3 5 . Classes Destroyed 7 | 1 5 . 1 Worker 2 | . 2 . . Hauler 2 | . 2 . . Recycler 2 | 1 1 . . Watcher 3 | . 3 . . Swarmer 9 | . 6 3 . Grunt 9 | . 5 4 . Subdweller 7 | . . . 7 Best Kill Streak 8 | 1 8 3 3 Combat Bots Only 3 | . 3 3 3 Max Kills in Single Turn 2 | 1 2 2 1 Gunslinging . | . . . . Exploded 2 | . 2 2 . Melee . | . . . . Uniques/NPCs Destroyed . | . . . . Combat | -11 -10 -10 -10 -------- Run | Yrd Mat Min Sub Hostile Shots Fired 139 | . 58 23 58 Missed 42 | . 21 6 15 Hits 97 | . 37 17 43 Projectile 97 | . 37 17 43 Critical Strikes 3 | . . . 3 Damage Taken 1579 | 17 422 252 888 Core 255 | . 50 . 205 Absorbed by Shields . | . . . . Regen/Repaired (Parts) 77 | . 77 . . Core Remaining (%) 100 | 100 . . . Volleys Fired 93 | 3 44 17 29 Largest 2 | 2 2 2 2 Hottest 104 | 80 80 80 104 Shots Fired 173 | 6 81 28 58 Gun 128 | 6 78 11 33 Cannon 37 | . 1 11 25 Launcher 8 | . 2 6 . Special . | . . . . Kinetic 50 | . 6 11 33 Thermal 37 | . 1 11 25 Explosive 8 | . 2 6 . Electromagnetic 78 | 6 72 . . Robot Hit Streak 16 | 1 7 7 16 Robot Miss Streak 3 | 1 3 1 3 Penetration Max . | . . . . Secondary Targets 2 | . 1 . 1 Max Gunslinging Chain 1 | . 1 . 1 Shots Hit Robots 114 | 2 47 16 49 Core Hits 59 | 1 28 16 14 Critical Kills 2 | . . . 2 Critical Parts Destroyed . | . . . . Critical Strikes 2 | . . . 2 Meltdown 2 | . . . 2 Melee Attacks . | . . . . Impact . | . . . . Slashing . | . . . . Piercing . | . . . . Sneak Attacks . | . . . . Combat Hostiles . | . . . . Follow-up Attacks . | . . . . Damage Inflicted 2319 | 77 797 628 817 Guns 1154 | 30 661 39 424 Cannons 583 | . 17 173 393 Explosions 582 | 47 119 416 . Melee . | . . . . Ramming . | . . . . Kinetic 490 | . 27 39 424 Thermal 660 | 47 47 173 393 Explosive 505 | . 89 416 . Electromagnetic 664 | 30 634 . . Impact . | . . . . Slashing . | . . . . Piercing . | . . . . Highest Corruption . | . . . . Average Corruption . | . . . . Corruption Purged . | . . . . Corruption Blocked . | . . . . Overload Shots . | . . . . Overflow Damage 28 | . 21 7 . Projectiles . | . . . . Explosions 28 | . 21 7 . Melee . | . . . . Knockbacks . | . . . . Impact . | . . . . Kinetic . | . . . . Secondary . | . . . . Self-Inflicted Damage 82 | 17 25 40 . Shots 3 | 1 1 1 . Rammed . | . . . . Targets Rammed . | . . . . Kicked . | . . . . Crushed . | . . . . Highest Temperature 435 | 66 400 294 435 Average Temperature 133 | 42 130 108 230 Received Heat Transfer 953 | . 123 108 722 Effects 7 | . 7 . . Shutdowns 2 | . 2 . . Energy Bleed 3 | . 3 . . Short Circuit 2 | . 2 . . Siege Activations . | . . . . Martial Activations . | . . . . Shielding Activations . | . . . . Robots Disrupted . | . . . . Combat Hostiles . | . . . . Robots Corrupted . | . . . . Combat Hostiles . | . . . . Parts Fried 2 | . 2 . . Impact Corruptions . | . . . . Robots Melted 2 | . . . 2 Combat Hostiles 2 | . . . 2 Parts Melted 6 | . . . 6 Heat Transferred 1321 | 50 87 370 814 Parts Sabotaged . | . . . . Parts Stolen . | . . . . Parts Stripped . | . . . . Power Chain Reactions 2 | 1 1 . . Alert | -11 -10 -10 -10 ------- Run | Yrd Mat Min Sub Maximum Alert Level . | . . . . Low Security (%) 100 | 100 100 100 . Level 1 . | . . . . Level 2 . | . . . . Level 3 . | . . . . Level 4 . | . . . . Level 5 . | . . . . High Security . | . . . . Max Security . | . . . . Peak Influence 176 | 5 129 176 . Initial 31 | . 3 31 . Average 59 | 3 44 115 . Influence Increases 714 | 5 429 235 45 Destroy 0b10 Robot/C 360 | . 220 140 . Destroy 0b10 Robot/NC 45 | 5 40 . . Destroy Leader 80 | . 50 30 . Successful Hack 39 | . 39 . . Select Force Hacks 60 | . 60 . . Disable Machine 60 | . 15 45 . Destroy Structure 25 | . 5 20 . Lose Combat Pursuer 45 | . . . 45 Influence Decreases 675 | . 352 257 66 Entered New Map 85 | . 2 51 32 Time Decay 570 | . 340 206 24 Lost Part 20 | . 10 . 10 Squads Dispatched 2 | . 2 . . Investigation 2 | . 2 . . Extermination . | . . . . Reinforcement . | . . . . Assault . | . . . . Garrison . | . . . . Intercept . | . . . . Searches Triggered . | . . . . Construction Impeded . | . . . . Haulers Reinforced . | . . . . Active Scanning Responses . | . . . . Cargo Convoy Interrupts . | . . . . Stealth | -11 -10 -10 -10 --------- Run | Yrd Mat Min Sub Distress Signals 2 | . 2 . . Communications Jammed . | . . . . Distress Signals . | . . . . Times Spotted 34 | . 16 7 11 Peak Tracking Total 6 | . 4 3 6 Tactical Retreats 1 | . . . 1 Traps | -11 -10 -10 -10 ------- Run | Yrd Mat Min Sub Traps Triggered 3 | . 1 . 2 Indirectly . | . . . . Trap Hack Attempts . | . . . . Triggered . | . . . . Disarmed . | . . . . Reprogrammed . | . . . . Reused . | . . . . Traps Extracted . | . . . . Installed . | . . . . Triggered . | . . . . Most Traps Carried 3 | . . 3 3 Machines | -11 -10 -10 -10 ---------- Run | Yrd Mat Min Sub Machines Disabled 4 | . 1 3 . Max in Single Turn 2 | . 1 2 . Machines Repaired . | . . . . Machines Dismantled . | . . . . Machines Sabotaged . | . . . . Overloaded Fab Kills . | . . . . Hacking | -11 -10 -10 -10 --------- Run | Yrd Mat Min Sub Machines Accessed 11 | . 11 . . Terminals 8 | . 8 . . Fabricators . | . . . . Repair Stations 1 | . 1 . . Recycling Units 2 | . 2 . . Scanalyzers . | . . . . Garrison Access . | . . . . Total Hacks 24 | . 24 . . Successful 17 | . 17 . . Failed 7 | . 7 . . Catastrophic 1 | . 1 . . Database Lockouts . | . . . . Manual 9 | . 9 . . Terminals 20 | . 20 . . Fabricators . | . . . . Repair Stations 2 | . 2 . . Recycling Units 2 | . 2 . . Scanalyzers . | . . . . Garrison Access . | . . . . Terminal Hacks 6 | . 6 . . Prototype ID Bank 3 | . 3 . . Emergency Access Points 1 | . 1 . . Hauler Manifests 1 | . 1 . . Registered Components 1 | . 1 . . Fabricator Hacks . | . . . . Repair Station Hacks 2 | . 2 . . Scan Component 1 | . 1 . . Repair 1 | . 1 . . Recycling Unit Hacks . | . . . . Scanalyzer . | . . . . Garrison Access Hacks . | . . . . Unauthorized Hacks 9 | . 9 . . Terminals 7 | . 7 . . Skim 7 | . 7 . . Fabricators . | . . . . Repair Stations . | . . . . Recycling Units 2 | . 2 . . Tunnel 2 | . 2 . . Scanalyzers . | . . . . Garrison Access . | . . . . Data Cores Recovered . | . . . . Used . | . . . . Hacking Detections 5 | . 5 . . Full Trace Events . | . . . . Feedback Events . | . . . . Feedback Blocked . | . . . . Robot Schematics Acquired . | . . . . Robots Built . | . . . . Authchips . | . . . . Time . | . . . . Total Robot Build Rating . | . . . . Part Schematics Acquired . | . . . . Parts Built . | . . . . Authchips . | . . . . Time . | . . . . Total Part Build Rating . | . . . . Part Studies Acquired . | . . . . Parts Repaired 1 | . 1 . . Time 26 | . 26 . . Parts Recycled . | . . . . Recycled Matter . | . . . . Retrieved Matter . | . . . . Retrieved Components . | . . . . Parts Scanalyzed . | . . . . Part Schematics Acquired . | . . . . Parts Damaged . | . . . . Bothacking | -11 -10 -10 -10 ------------ Run | Yrd Mat Min Sub Used RIF Installer . | . . . . Robots Hacked . | . . . . Non-combat . | . . . . Combat . | . . . . Robot Hacks Applied . | . . . . Relay Couplers Released . | . . . . Fabnet Peak Effective % . | . . . . Robots Rewired . | . . . . Allies Hacked . | . . . . Hacks Repelled . | . . . . Allies | -11 -10 -10 -10 -------- Run | Yrd Mat Min Sub Total Allies . | . . . . Largest Group . | . . . . Highest-Rated Group . | . . . . Highest-Rated Ally . | . . . . Total Orders . | . . . . Ally Attacks . | . . . . Total Damage . | . . . . Kills . | . . . . Allies Corrupted . | . . . . Allies Melted . | . . . . Intel | -11 -10 -10 -10 ------- Run | Yrd Mat Min Sub Active Infowar (turns) 269 | . . . 269 Seismic 269 | . . . 269 Robot Analysis Total . | . . . . Derelict Logs Recovered 2 | . . 1 1 Drone Launches . | . . . . Drone Recoveries . | . . . . Exploration | -11 -10 -10 -10 ------------- Run | Yrd Mat Min Sub Turns Passed 2856 | 14 1549 430 863 Spaces Moved 1469 | 1 902 211 355 Core . | . . . . Treads 72 | 1 41 . 30 Legs . | . . . . Wheels 1397 | . 861 211 325 Hover . | . . . . Flight . | . . . . Fastest Speed 100 | 160 100 175 175 Average Speed 161 | 160 143 175 200 Slowest Speed 320 | 160 175 175 320 Overloaded Moves . | . . . . Propulsion Burnouts . | . . . . Robots Hopped . | . . . . Potential Cave-ins . | . . . . Cave-ins Triggered . | . . . . Exploration Rate (%) 42 | 2 95 44 28 Regions Visited 3 Branch Regions 2 Pre-discovered Areas 5 | . 3 1 1 Known Exits Taken 2 | . 1 1 . Unknown Exits Taken 1 | 1 . . . Scrap Searched . | . . . . Spaces Dug . | . . . . Terrain Destroyed 31 | . 4 26 1 Melee . | . . . . Projectile 1 | . . . 1 AOE 30 | . 4 26 . Terrain Rammed . | . . . . Walls Destroyed . | . . . . Machines Disabled . | . . . . Actions | -11 -10 -10 -10 --------- Run | Yrd Mat Min Sub Total 1772 | 8 1077 243 444 Wait 137 | . 92 6 39 Move 1466 | . 901 210 355 Hop . | . . . . Pick Up 27 | . 18 4 5 Fast Attach 3 | . 3 . . Attach 10 | 2 3 . 5 Detach . | . . . . Swap 25 | 1 9 6 9 Drop 11 | 2 7 . 2 Fire 93 | 3 44 17 29 Melee . | . . . . Ram . | . . . . Kick . | . . . . Crush . | . . . . Escape Stasis . | . . . . Rewire . | . . . . Trap . | . . . . Miscellaneous . | . . . . Route ------- -11/Scrapyard -10/Materials (discovered 5 exits: *Mat x3 / *Min / Sub) -10/Mines (discovered 4 exits: *Mat x2 / [*Exi] / *Sub) -10/Subcaves History --------- Turn | Location | Event 15 | -11/Scrapyard | Discovered new exit (range 0) 15 | -11/Scrapyard | Entered Materials 316 | -10/Materials | Build established: Mutant 373 | -10/Materials | Discovered new exit (range 15) 475 | -10/Materials | Discovered new exit (range 15) 1214 | -10/Materials | Discovered new exit (range 10) 1215 | -10/Materials | Learned location of Recycling (-9) 1277 | -10/Materials | Repaired Lgt. Treads 1283 | -10/Materials | Identified exit to Mines 1283 | -10/Materials | Identified exit to Subcaves 1341 | -10/Materials | Learned Storage stockpile data 1387 | -10/Materials | Loaded intel: 5 trap records 1423 | -10/Materials | Learned Storage security intel 1564 | -10/Materials | Entered Mines 1565 | -10/Mines | Identified exit to Materials 1594 | -10/Mines | Learned location of Storage (-9) 1763 | -10/Mines | Found a hidden stash of uninstalled traps 1764 | -10/Mines | Assembled infested the area 1957 | -10/Mines | Discovered new exit (range 5) 1985 | -10/Mines | Discovered exit to Subcaves (range 6) 1994 | -10/Mines | Entered Subcaves 2009 | -10/Subcaves | A swath of the cavern ceiling suddenly collapsed 2040 | -10/Subcaves | Core integrity fell below 50% 2088 | -10/Subcaves | A swath of the cavern ceiling suddenly collapsed 2246 | -10/Subcaves | Core integrity fell below 20% 2854 | -10/Subcaves | Learned location of Zion (-6) 2857 | -10/Subcaves | Destroyed by S-10 Pest with Light Assault Rifle Last Messages --------------- 02402_ Acquired 30 matter. 02526_ AQ-PER(R) destroyed. 02526_ Switching to secondary target: NN-8RO(R). 02526_ Com. Wheel destroyed. 02530_ NN-8RO(R) destroyed. 02549_ Acquired Sub. Beam Cannon. 02663_ Acquired 26 matter. 02669_ Acquired 37 matter. 02723_ Triggered Piercing Trap. 02723_ Spikes shoot up from the floor. 02723_ Critical hit (Impale). 02737_ Triggered Piercing Trap. 02737_ Spikes shoot up from the floor. 02773_ Acquired 3 matter. 02834_ EM-9UF(R) suffers critical hit (Meltdown). 02834_ Sub. Monowheel melted. 02834_ Disposable Heat Sink melted. 02843_ Acquired 41 matter. 02854_ Acquired derelict log, extracted data. World map updated: -6/Zion. Map ----- +----------------------------------------------------+ | ??????????????????????????????????????????????? | | ??????????????????????????????????????????????? | | ??????????????????????????????????????????????? | | ??????????????????????????????????????????????? | | ??????????????????????? ?????????????????????? | | ?????????????????????## ?????????????????????? | | ?????????????????????# ?????????????????????? | | ????????????????????## #????###?????????????? | | ????????????????????# #???## ?????????????? | | ???????????????????## #???? ?????????????? | | ???????????????# ?## ##??? #????????????? | | ??????????????##" ? ##?? #????????????? | | ??????????????? ?? ##?# ????????????? | | ???????????????#< ?? #?? #????????????? | | ??????????????## ???# #??? #????????????? | | ??????????????# ???# ##??# ##???????????? | | ???????????????# #### #?## #???????????? | | ????????????????# ### ##???????????? | | ?????????????????# # ###?????????? | | ?????????????????## ##????????? | | ??????????????????# ###??????? | | ??????????????????## # ## # ##???### | | ???????????????????# ### #### ##### | | ???????????????????# ###?####??## # ## | | ???????????????##### s##?????????### # ## #### | | ???????????????# s@#???????????#########??? | | ???????????????## < s;###?????????????????????? | | ????????????????# < s #?????????????????????? | | ????????????????# << #????????????????????? | | ????????????????# & #?????????????????? | | ????????????????#& < ??????????????? | | ????????????????##R " ????????????? | | ?????????????????## " ?????????????? | | ?????????????????? # ##### ?????????????? | | ??????????????????# ## #???????????????????? | | ?????????????????? #? #???????????????????? | | ?????????????????? ##?# #???????????????????? | | ??????????????????# ???? ???????????????????? | | ??????????????????? ????? #??????????????????? | | ??????????????????????????? ??????????????????? | | ??????????????????????????????????????????????? | | ??????????????????????????????????????????????? | | ??????????????????????????????????????????????? | | ??????????????????????????????????????????????? | | ??????????????????????????????????????????????? | | ??????????????????????????????????????????????? | | ??????????????????????????????????????????????? | | ??????????????????????????????????????????????? | | ??????????????????????????????????????????????? | | ??????????????????????????????????????????????? | +----------------------------------------------------+ Best States ------------- Heat Dissipation 25 Energy Generation 10 Energy Capacity 250 Matter Stores 300 Matter Capacity 300 Sight Range 16 Terrain Scan Density 10 Armor Coverage 150 Evasion (%) 40 Recoil Reduction 2 Item Schematics ----------------- None Robot Schematics ------------------ None Fabricated ------------ Nothing Repaired ---------- Lgt. Treads | 45% | -10/Materials Studied --------- None Alien Tech Used ----------------- None Achievements -------------- None Challenges ------------ None Game ------ Seed FrostAdvancedInterpreter Manual? 0 Play Time 00:14:39 Cumulative 875.5 hours Start 2025.11.09 @ 21:42:42 End 2025.11.09 @ 21:54:16 Sessions 1 Manual Loads 0 Difficulty Rogue Special Mode None Game No. 747 Rogue 747 Adventurer 0 Explorer 0 Win Type - Total 46 Types 15/8/11/1/1/1/7/1/1/0 Lore% 79 Gallery% 84 Achievement% 57 Wizard Run 0 Options --------- Layout 0 ASCII 0 Keyboard 0 Movement Mouse Keybinds 1 Fullscreen 2 Font 24/Smallcaps Map View 76x50 Zoom Use 0% Tactical HUD 1 Map Filters NONE Filters NONE Steam 1 RUN: ec286101-0046-4212-8464-a1d28b752854